[Event "November 21 Early 2023"]
[Site "https://www.chess.com"]
[Date "2023.11.21"]
[Round "1"]
[White "Shubenkova, Veronika"]
[Black "Terry, Renato"]
[Result "1-0"]
[Board "16"]
[TimeControl "180+1"]
[WhiteFideId "44124040"]
[BlackFideId "3803457"]
[WhiteElo "1967"]
[BlackElo "2572"]
[WhiteTeam "RUS"]
[BlackTeam "PER"]
[WhiteClock "0:00:30"]
[BlackClock "0:00:20"]

1. e4 {[%clk 0:03:00]}  e6 {[%clk 0:02:59]} 2. d4 {[%clk 0:03:01]}  d5 {[%clk 0:03:00]} 3. exd5 {[%clk 0:03:01]}  exd5 {[%clk 0:03:01]} 4. Nf3 {[%clk 0:03:02]}  Nc6 {[%clk 0:03:00]} 5. c3 {[%clk 0:03:02]}  Bd6 {[%clk 0:03:00]} 6. Bd3 {[%clk 0:03:02]}  Bg4 {[%clk 0:03:00]} 7. O-O {[%clk 0:03:03]}  Nge7 {[%clk 0:03:00]} 8. Nbd2 {[%clk 0:03:03]}  Qd7 {[%clk 0:02:59]} 9. Qc2 {[%clk 0:03:02]}  f6 {[%clk 0:02:46]} 10. Re1 {[%clk 0:03:01]}  O-O-O {[%clk 0:02:22]} 11. b4 {[%clk 0:03:01]}  Bf5 {[%clk 0:02:23]} 12. a4 {[%clk 0:03:01]}  Bxd3 {[%clk 0:02:22]} 13. Qxd3 {[%clk 0:03:01]}  Qf5 {[%clk 0:02:23]} 14. Qf1 {[%clk 0:02:53]}  g5 {[%clk 0:02:20]} 15. a5 {[%clk 0:02:50]}  Ng6 {[%clk 0:02:16]} 16. b5 {[%clk 0:02:48]}  Nce7 {[%clk 0:02:12]} 17. Nb3 {[%clk 0:02:47]}  g4 {[%clk 0:02:06]} 18. Nfd2 {[%clk 0:02:47]}  h5 {[%clk 0:02:00]} 19. b6 {[%clk 0:02:45]}  a6 {[%clk 0:01:55]} 20. bxc7 {[%clk 0:02:45]}  Bxc7 {[%clk 0:01:56]} 21. Ba3 {[%clk 0:02:39]}  Nc6 {[%clk 0:01:55]} 22. Nc5 {[%clk 0:02:37]}  Qf4 {[%clk 0:01:54]} 23. g3 {[%clk 0:02:14]}  Qxd2 {[%clk 0:01:54]} 24. Nxb7 {[%clk 0:02:03]}  Nb8 {[%clk 0:01:10]} 25. Nxd8 {[%clk 0:01:58]}  h4 {[%clk 0:00:59]} 26. Nf7 {[%clk 0:01:40]}  Rh7 {[%clk 0:00:54]} 27. Nd6+ {[%clk 0:01:33]}  Kd7 {[%clk 0:00:52]} 28. Re2 {[%clk 0:01:09]}  Qh6 {[%clk 0:00:44]} 29. Qb1 {[%clk 0:00:46]}  Ne7 {[%clk 0:00:39]} 30. Rxe7+ {[%clk 0:00:34]}  Rxe7 {[%clk 0:00:37]} 31. Nf5 {[%clk 0:00:34]}  Qd2 {[%clk 0:00:19]} 32. Nxe7 {[%clk 0:00:33]}  hxg3 {[%clk 0:00:20]} 33. Qf5+ {[%clk 0:00:32]}  Kd8 {[%clk 0:00:20]} 34. Qc8# {[%clk 0:00:30]} 1-0

[Event "November 21 Early 2023"]
[Site "https://www.chess.com"]
[Date "2023.11.21"]
[Round "1"]
[White "Nguyen, Ngoc Truong Son"]
[Black "Silva Lucena, Cristian"]
[Result "1-0"]
[Board "17"]
[TimeControl "180+1"]
[WhiteFideId "12401110"]
[BlackFideId "2232588"]
[WhiteElo "2556"]
[BlackElo "2248"]
[WhiteTeam "VIE"]
[BlackTeam "ESP"]
[WhiteClock "0:00:05"]
[BlackClock "0:00:01"]

1. e4 {[%clk 0:02:58]}  c5 {[%clk 0:02:59]} 2. Nf3 {[%clk 0:02:58]}  d6 {[%clk 0:02:59]} 3. d4 {[%clk 0:02:57]}  cxd4 {[%clk 0:03:00]} 4. Nxd4 {[%clk 0:02:58]}  Nf6 {[%clk 0:03:01]} 5. Nc3 {[%clk 0:02:58]}  a6 {[%clk 0:03:02]} 6. h3 {[%clk 0:02:50]}  e5 {[%clk 0:02:59]} 7. Nb3 {[%clk 0:02:47]}  h5 {[%clk 0:02:53]} 8. Bg5 {[%clk 0:02:42]}  Be6 {[%clk 0:02:52]} 9. Qd2 {[%clk 0:02:36]}  Nbd7 {[%clk 0:02:50]} 10. g3 {[%clk 0:02:32]}  Be7 {[%clk 0:02:38]} 11. f4 {[%clk 0:02:28]}  Rc8 {[%clk 0:02:34]} 12. Bg2 {[%clk 0:02:23]}  Qc7 {[%clk 0:02:21]} 13. O-O {[%clk 0:02:12]}  b5 {[%clk 0:02:09]} 14. a3 {[%clk 0:02:06]}  Nb6 {[%clk 0:01:44]} 15. f5 {[%clk 0:01:55]}  Bc4 {[%clk 0:01:43]} 16. Rf2 {[%clk 0:01:54]}  Nbd7 {[%clk 0:01:34]} 17. Rd1 {[%clk 0:01:50]}  a5 {[%clk 0:01:24]} 18. Bf1 {[%clk 0:01:22]}  b4 {[%clk 0:00:36]} 19. axb4 {[%clk 0:00:54]}  axb4 {[%clk 0:00:37]} 20. Nd5 {[%clk 0:00:47]}  Bxd5 {[%clk 0:00:37]} 21. Bxf6 {[%clk 0:00:46]}  Nxf6 {[%clk 0:00:33]} 22. exd5 {[%clk 0:00:45]}  Ne4 {[%clk 0:00:32]} 23. Qxb4 {[%clk 0:00:44]}  Nxf2 {[%clk 0:00:33]} 24. Kxf2 {[%clk 0:00:44]}  Qxc2+ {[%clk 0:00:33]} 25. Rd2 {[%clk 0:00:44]}  Qxf5+ {[%clk 0:00:33]} 26. Kg2 {[%clk 0:00:44]}  O-O {[%clk 0:00:31]} 27. Bd3 {[%clk 0:00:43]}  Qg5 {[%clk 0:00:30]} 28. Na5 {[%clk 0:00:35]}  h4 {[%clk 0:00:30]} 29. g4 {[%clk 0:00:32]}  Rb8 {[%clk 0:00:28]} 30. Qc3 {[%clk 0:00:30]}  Qf4 {[%clk 0:00:21]} 31. Nc6 {[%clk 0:00:29]}  Qg3+ {[%clk 0:00:18]} 32. Kf1 {[%clk 0:00:28]}  Qxh3+ {[%clk 0:00:18]} 33. Rg2 {[%clk 0:00:27]}  Qf3+ {[%clk 0:00:17]} 34. Kg1 {[%clk 0:00:27]}  Qe3+ {[%clk 0:00:16]} 35. Kh1 {[%clk 0:00:27]}  Qg5 {[%clk 0:00:14]} 36. Kh2 {[%clk 0:00:21]}  h3 {[%clk 0:00:14]} 37. Rf2 {[%clk 0:00:20]}  Ra8 {[%clk 0:00:10]} 38. Rf5 {[%clk 0:00:19]}  Qh4 {[%clk 0:00:11]} 39. Qd2 {[%clk 0:00:15]}  g6 {[%clk 0:00:10]} 40. Rf3 {[%clk 0:00:15]}  Qg5 {[%clk 0:00:09]} 41. Qf2 {[%clk 0:00:13]}  Ra2 {[%clk 0:00:08]} 42. Bc4 {[%clk 0:00:11]}  Kg7 {[%clk 0:00:08]} 43. Bxa2 {[%clk 0:00:11]}  e4 {[%clk 0:00:09]} 44. Rxh3 {[%clk 0:00:09]}  Bf6 {[%clk 0:00:08]} 45. Bc4 {[%clk 0:00:09]}  e3 {[%clk 0:00:07]} 46. Qxe3 {[%clk 0:00:08]}  Qxe3 {[%clk 0:00:06]} 47. Rxe3 {[%clk 0:00:09]}  Bxb2 {[%clk 0:00:06]} 48. Kg3 {[%clk 0:00:09]}  Ra8 {[%clk 0:00:04]} 49. Rb3 {[%clk 0:00:08]}  Bf6 {[%clk 0:00:04]} 50. Be2 {[%clk 0:00:06]}  Ra2 {[%clk 0:00:02]} 51. Bf3 {[%clk 0:00:06]}  Rd2 {[%clk 0:00:02]} 52. Kf4 {[%clk 0:00:05]}  g5+ {[%clk 0:00:02]} 53. Ke3 {[%clk 0:00:06]}  Rc2 {[%clk 0:00:02]} 54. Rb7 {[%clk 0:00:06]}  Rc3+ {[%clk 0:00:02]} 55. Ke2 {[%clk 0:00:06]}  Rc2+ {[%clk 0:00:02]} 56. Kd1 {[%clk 0:00:05]}  Rc3 {[%clk 0:00:03]} 57. Be4 {[%clk 0:00:05]}  Re3 {[%clk 0:00:03]} 58. Bf5 {[%clk 0:00:05]}  Rd3+ {[%clk 0:00:01]} 59. Bxd3 {[%clk 0:00:05]} 1-0

[Event "November 21 Early 2023"]
[Site "https://www.chess.com"]
[Date "2023.11.21"]
[Round "1"]
[White "Le, Tuan Minh"]
[Black "Kovacsy, Barnabas"]
[Result "1-0"]
[Board "19"]
[TimeControl "180+1"]
[WhiteFideId "12401153"]
[BlackFideId "769290"]
[WhiteElo "2561"]
[BlackElo "2130"]
[WhiteTeam "VIE"]
[BlackTeam "HUN"]
[WhiteClock "0:01:07"]
[BlackClock "0:01:01"]

1. d4 {[%clk 0:02:59]}  Nf6 {[%clk 0:02:57]} 2. Nf3 {[%clk 0:02:53]}  g6 {[%clk 0:02:57]} 3. Bg5 {[%clk 0:02:50]}  Bg7 {[%clk 0:02:54]} 4. Nbd2 {[%clk 0:02:39]}  O-O {[%clk 0:02:49]} 5. c3 {[%clk 0:02:39]}  d6 {[%clk 0:02:49]} 6. e4 {[%clk 0:02:38]}  Nbd7 {[%clk 0:02:31]} 7. Bc4 {[%clk 0:02:38]}  e5 {[%clk 0:02:31]} 8. O-O {[%clk 0:02:38]}  c6 {[%clk 0:02:31]} 9. Re1 {[%clk 0:02:35]}  Qc7 {[%clk 0:02:30]} 10. a4 {[%clk 0:02:29]}  b6 {[%clk 0:02:30]} 11. Nf1 {[%clk 0:02:29]}  Bb7 {[%clk 0:02:30]} 12. Ng3 {[%clk 0:02:28]}  Rae8 {[%clk 0:02:24]} 13. Bb3 {[%clk 0:02:22]}  a5 {[%clk 0:02:19]} 14. h3 {[%clk 0:02:19]}  h6 {[%clk 0:02:11]} 15. Bd2 {[%clk 0:02:19]}  Kh7 {[%clk 0:02:11]} 16. Qc2 {[%clk 0:02:19]}  Re7 {[%clk 0:01:52]} 17. Rad1 {[%clk 0:02:08]}  d5 {[%clk 0:01:38]} 18. exd5 {[%clk 0:01:30]}  cxd5 {[%clk 0:01:38]} 19. dxe5 {[%clk 0:01:27]}  Nxe5 {[%clk 0:01:39]} 20. Nxe5 {[%clk 0:01:23]}  Rxe5 {[%clk 0:01:39]} 21. Rxe5 {[%clk 0:01:24]}  Qxe5 {[%clk 0:01:39]} 22. Be3 {[%clk 0:01:24]}  Ne4 {[%clk 0:01:36]} 23. Nxe4 {[%clk 0:01:22]}  dxe4 {[%clk 0:01:36]} 24. Bxb6 {[%clk 0:01:21]}  f5 {[%clk 0:01:27]} 25. Rd7 {[%clk 0:01:19]}  Bc6 {[%clk 0:01:19]} 26. Ra7 {[%clk 0:01:11]}  f4 {[%clk 0:01:12]} 27. Bd4 {[%clk 0:01:11]}  Qxd4 {[%clk 0:01:10]} 28. cxd4 {[%clk 0:01:11]}  e3 {[%clk 0:01:09]} 29. Qxc6 {[%clk 0:01:08]}  exf2+ {[%clk 0:01:01]} 30. Kf1 {[%clk 0:01:07]} 1-0

[Event "November 21 Early 2023"]
[Site "https://www.chess.com"]
[Date "2023.11.21"]
[Round "1"]
[White "Liang, Awonder"]
[Black "Grochal, Joey"]
[Result "1-0"]
[Board "21"]
[TimeControl "180+1"]
[WhiteFideId "2056437"]
[BlackFideId "1019945"]
[WhiteElo "2527"]
[BlackElo "2231"]
[WhiteTeam "USA"]
[BlackTeam "NED"]
[WhiteClock "0:02:07"]
[BlackClock "0:00:12"]

1. Nf3 {[%clk 0:03:00]}  Nf6 {[%clk 0:02:59]} 2. e3 {[%clk 0:03:01]}  d5 {[%clk 0:02:58]} 3. b3 {[%clk 0:03:01]}  Bf5 {[%clk 0:02:57]} 4. Bb2 {[%clk 0:03:01]}  e6 {[%clk 0:02:57]} 5. Be2 {[%clk 0:03:02]}  h6 {[%clk 0:02:56]} 6. d3 {[%clk 0:03:02]}  Be7 {[%clk 0:02:56]} 7. Nbd2 {[%clk 0:03:03]}  Bh7 {[%clk 0:02:55]} 8. h3 {[%clk 0:03:03]}  O-O {[%clk 0:02:55]} 9. g4 {[%clk 0:03:04]}  Nfd7 {[%clk 0:02:49]} 10. h4 {[%clk 0:03:04]}  Bf6 {[%clk 0:02:49]} 11. d4 {[%clk 0:03:02]}  c5 {[%clk 0:02:46]} 12. g5 {[%clk 0:02:46]}  hxg5 {[%clk 0:02:45]} 13. hxg5 {[%clk 0:02:47]}  Bxg5 {[%clk 0:02:46]} 14. Bd3 {[%clk 0:02:46]}  Bxd3 {[%clk 0:02:41]} 15. cxd3 {[%clk 0:02:47]}  Bf6 {[%clk 0:02:30]} 16. Ne5 {[%clk 0:02:45]}  g6 {[%clk 0:02:24]} 17. Qg4 {[%clk 0:02:45]}  Kg7 {[%clk 0:02:15]} 18. O-O-O {[%clk 0:02:43]}  Nxe5 {[%clk 0:02:00]} 19. dxe5 {[%clk 0:02:43]}  Be7 {[%clk 0:02:00]} 20. f4 {[%clk 0:02:32]}  Rh8 {[%clk 0:01:57]} 21. e4 {[%clk 0:02:31]}  Nc6 {[%clk 0:00:52]} 22. f5 {[%clk 0:02:30]}  Nd4 {[%clk 0:00:45]} 23. Nf3 {[%clk 0:02:11]}  Rc8 {[%clk 0:00:33]} 24. Nxd4 {[%clk 0:02:04]}  cxd4+ {[%clk 0:00:33]} 25. Kb1 {[%clk 0:02:05]}  Rh4 {[%clk 0:00:24]} 26. f6+ {[%clk 0:02:04]}  Bxf6 {[%clk 0:00:24]} 27. exf6+ {[%clk 0:02:04]}  Qxf6 {[%clk 0:00:24]} 28. Qxh4 {[%clk 0:02:05]}  Qxh4 {[%clk 0:00:18]} 29. Rxh4 {[%clk 0:02:06]}  e5 {[%clk 0:00:16]} 30. exd5 {[%clk 0:02:07]}  Rd8 {[%clk 0:00:17]} 31. Re1 {[%clk 0:02:06]}  Rxd5 {[%clk 0:00:12]} 32. Rxe5 {[%clk 0:02:07]} 1-0

[Event "November 21 Early 2023"]
[Site "https://www.chess.com"]
[Date "2023.11.21"]
[Round "1"]
[White "Bharath Subramaniyam H"]
[Black "Toktomushev, Teimur"]
[Result "1-0"]
[Board "23"]
[TimeControl "180+1"]
[WhiteFideId "46634827"]
[BlackFideId "14176726"]
[WhiteElo "2435"]
[BlackElo "2198"]
[WhiteTeam "IND"]
[BlackTeam "UKR"]
[WhiteClock "0:01:47"]
[BlackClock "0:00:00"]

1. e4 {[%clk 0:03:00]}  c5 {[%clk 0:02:57]} 2. Nf3 {[%clk 0:02:59]}  e6 {[%clk 0:02:57]} 3. d4 {[%clk 0:02:59]}  cxd4 {[%clk 0:02:58]} 4. Nxd4 {[%clk 0:02:59]}  a6 {[%clk 0:02:59]} 5. c4 {[%clk 0:02:59]}  Nf6 {[%clk 0:02:59]} 6. Nc3 {[%clk 0:03:00]}  Qc7 {[%clk 0:02:55]} 7. a3 {[%clk 0:03:00]}  b6 {[%clk 0:02:55]} 8. Be2 {[%clk 0:03:00]}  Bb7 {[%clk 0:02:54]} 9. f3 {[%clk 0:03:01]}  Be7 {[%clk 0:02:50]} 10. Be3 {[%clk 0:03:01]}  O-O {[%clk 0:02:50]} 11. Rc1 {[%clk 0:03:01]}  d6 {[%clk 0:02:51]} 12. O-O {[%clk 0:03:01]}  Nbd7 {[%clk 0:02:51]} 13. Qd2 {[%clk 0:02:59]}  Rac8 {[%clk 0:02:51]} 14. b4 {[%clk 0:02:57]}  Qb8 {[%clk 0:02:48]} 15. Rfd1 {[%clk 0:02:57]}  Ba8 {[%clk 0:02:34]} 16. Nb3 {[%clk 0:02:51]}  Rc6 {[%clk 0:02:28]} 17. Kh1 {[%clk 0:02:48]}  Rfc8 {[%clk 0:02:26]} 18. Na4 {[%clk 0:02:40]}  b5 {[%clk 0:01:35]} 19. cxb5 {[%clk 0:02:36]}  Rxc1 {[%clk 0:01:36]} 20. Rxc1 {[%clk 0:02:35]}  Rxc1+ {[%clk 0:01:35]} 21. Qxc1 {[%clk 0:02:35]}  axb5 {[%clk 0:01:36]} 22. Nc3 {[%clk 0:02:35]}  d5 {[%clk 0:01:33]} 23. exd5 {[%clk 0:02:24]}  Nxd5 {[%clk 0:01:28]} 24. Nxd5 {[%clk 0:02:24]}  Bxd5 {[%clk 0:01:29]} 25. Nd4 {[%clk 0:02:25]}  Bd6 {[%clk 0:00:43]} 26. Bxb5 {[%clk 0:02:20]}  Ne5 {[%clk 0:00:18]} 27. Bg1 {[%clk 0:02:17]}  h5 {[%clk 0:00:13]} 28. Be2 {[%clk 0:02:16]}  h4 {[%clk 0:00:06]} 29. h3 {[%clk 0:02:16]}  Ng6 {[%clk 0:00:05]} 30. b5 {[%clk 0:02:12]}  Nf4 {[%clk 0:00:05]} 31. Bf1 {[%clk 0:02:11]}  Nh5 {[%clk 0:00:04]} 32. Bf2 {[%clk 0:02:07]}  Bg3 {[%clk 0:00:04]} 33. Qe3 {[%clk 0:01:58]}  Bxf2 {[%clk 0:00:03]} 34. Qxf2 {[%clk 0:01:59]}  Ng3+ {[%clk 0:00:04]} 35. Kg1 {[%clk 0:01:59]}  Qa7 {[%clk 0:00:01]} 36. Ne2 {[%clk 0:01:53]}  Qxf2+ {[%clk 0:00:02]} 37. Kxf2 {[%clk 0:01:53]}  Nxf1 {[%clk 0:00:02]} 38. Kxf1 {[%clk 0:01:51]}  Kf8 {[%clk 0:00:02]} 39. Nc3 {[%clk 0:01:52]}  Bc4+ {[%clk 0:00:02]} 40. Kf2 {[%clk 0:01:51]}  Ke7 {[%clk 0:00:03]} 41. a4 {[%clk 0:01:51]}  Kd6 {[%clk 0:00:03]} 42. b6 {[%clk 0:01:47]}  Kc6 {[%clk 0:00:02]} 43. a5 {[%clk 0:01:48]}  Kb7 {[%clk 0:00:03]} 44. Ne4 {[%clk 0:01:47]}  Ka6 {[%clk 0:00:01]} 45. Nc5+ {[%clk 0:01:46]}  Kb5 {[%clk 0:00:01]} 46. b7 {[%clk 0:01:46]}  Kxc5 {[%clk 0:00:00]} 47. b8=Q {[%clk 0:01:47]} 1-0

[Event "November 21 Early 2023"]
[Site "https://www.chess.com"]
[Date "2023.11.21"]
[Round "1"]
[White "Ismayil, Malak"]
[Black "Gholami Orimi, Mahdi"]
[Result "0-1"]
[Board "24"]
[TimeControl "180+1"]
[WhiteFideId "13412604"]
[BlackFideId "12558486"]
[WhiteElo "1898"]
[BlackElo "2331"]
[WhiteTeam "AZE"]
[BlackTeam "IRI"]
[WhiteClock "0:00:00"]
[BlackClock "0:00:57"]

1. e4 {[%clk 0:02:58]}  c5 {[%clk 0:02:58]} 2. Nf3 {[%clk 0:02:59]}  d6 {[%clk 0:02:59]} 3. Bb5+ {[%clk 0:02:59]}  Bd7 {[%clk 0:02:59]} 4. Bxd7+ {[%clk 0:02:58]}  Nxd7 {[%clk 0:02:59]} 5. O-O {[%clk 0:02:58]}  Ngf6 {[%clk 0:02:56]} 6. Re1 {[%clk 0:02:55]}  e6 {[%clk 0:02:55]} 7. d4 {[%clk 0:02:36]}  Be7 {[%clk 0:02:52]} 8. c4 {[%clk 0:02:27]}  cxd4 {[%clk 0:02:48]} 9. Nxd4 {[%clk 0:02:28]}  O-O {[%clk 0:02:48]} 10. Nc3 {[%clk 0:02:24]}  Qa5 {[%clk 0:02:48]} 11. Bd2 {[%clk 0:02:18]}  Qc5 {[%clk 0:02:44]} 12. Be3 {[%clk 0:02:13]}  Qxc4 {[%clk 0:02:43]} 13. Rc1 {[%clk 0:02:14]}  Qc8 {[%clk 0:02:34]} 14. Ndb5 {[%clk 0:01:50]}  Qb8 {[%clk 0:02:26]} 15. Bf4 {[%clk 0:01:46]}  Ne5 {[%clk 0:02:25]} 16. Bg3 {[%clk 0:01:34]}  a6 {[%clk 0:02:23]} 17. Nd4 {[%clk 0:01:34]}  Rd8 {[%clk 0:02:13]} 18. f4 {[%clk 0:01:31]}  Nc6 {[%clk 0:02:14]} 19. Nb3 {[%clk 0:01:29]}  b5 {[%clk 0:01:47]} 20. f5 {[%clk 0:01:01]}  Ne5 {[%clk 0:01:41]} 21. Nd4 {[%clk 0:00:51]}  Qa7 {[%clk 0:01:41]} 22. Kh1 {[%clk 0:00:48]}  Qd7 {[%clk 0:01:39]} 23. Qb3 {[%clk 0:00:35]}  exf5 {[%clk 0:01:33]} 24. Nxf5 {[%clk 0:00:36]}  Nd3 {[%clk 0:01:29]} 25. Rcd1 {[%clk 0:00:25]}  Nxe1 {[%clk 0:01:28]} 26. Rxe1 {[%clk 0:00:26]}  Re8 {[%clk 0:01:23]} 27. Nd4 {[%clk 0:00:22]}  Bf8 {[%clk 0:01:22]} 28. Bh4 {[%clk 0:00:22]}  Ng4 {[%clk 0:01:20]} 29. Nd5 {[%clk 0:00:18]}  Re5 {[%clk 0:01:15]} 30. h3 {[%clk 0:00:15]}  Nh6 {[%clk 0:01:04]} 31. Qg3 {[%clk 0:00:11]}  Kh8 {[%clk 0:01:04]} 32. Nf6 {[%clk 0:00:04]}  Qd8 {[%clk 0:00:57]} 33. Nxh7 {[%clk 0:00:03]}  Be7 {[%clk 0:00:57]} 34. Ng5 {[%clk 0:00:00]}  Bxg5 {[%clk 0:00:57]} 0-1

[Event "November 21 Early 2023"]
[Site "https://www.chess.com"]
[Date "2023.11.21"]
[Round "1"]
[White "Alekseenko, Kirill"]
[Black "Grossboss19"]
[Result "1-0"]
[Board "27"]
[TimeControl "180+1"]
[WhiteFideId "4135539"]
[WhiteElo "2667"]
[BlackElo "2503"]
[WhiteTeam "AUT"]
[WhiteClock "0:00:51"]
[BlackClock "0:00:28"]

1. e4 {[%clk 0:03:00]}  c6 {[%clk 0:02:57]} 2. d4 {[%clk 0:02:56]}  d5 {[%clk 0:02:57]} 3. exd5 {[%clk 0:02:57]}  cxd5 {[%clk 0:02:58]} 4. Bd3 {[%clk 0:02:58]}  Nc6 {[%clk 0:02:57]} 5. c3 {[%clk 0:02:58]}  Nf6 {[%clk 0:02:56]} 6. h3 {[%clk 0:02:59]}  g6 {[%clk 0:02:57]} 7. Bf4 {[%clk 0:02:57]}  Bf5 {[%clk 0:02:55]} 8. Nf3 {[%clk 0:02:55]}  Bxd3 {[%clk 0:02:54]} 9. Qxd3 {[%clk 0:02:55]}  Bg7 {[%clk 0:02:51]} 10. Nbd2 {[%clk 0:02:55]}  O-O {[%clk 0:02:51]} 11. O-O {[%clk 0:02:55]}  e6 {[%clk 0:02:49]} 12. Rfe1 {[%clk 0:02:54]}  Re8 {[%clk 0:02:49]} 13. Ne5 {[%clk 0:02:43]}  Nxe5 {[%clk 0:02:48]} 14. Bxe5 {[%clk 0:02:41]}  Nd7 {[%clk 0:02:47]} 15. Bxg7 {[%clk 0:02:41]}  Kxg7 {[%clk 0:02:47]} 16. Re3 {[%clk 0:02:32]}  b5 {[%clk 0:02:39]} 17. Rae1 {[%clk 0:02:27]}  Rb8 {[%clk 0:02:36]} 18. a3 {[%clk 0:02:16]}  a5 {[%clk 0:02:36]} 19. Rf3 {[%clk 0:02:14]}  b4 {[%clk 0:02:34]} 20. axb4 {[%clk 0:02:13]}  axb4 {[%clk 0:02:35]} 21. c4 {[%clk 0:02:14]}  dxc4 {[%clk 0:02:27]} 22. Nxc4 {[%clk 0:02:15]}  Qc7 {[%clk 0:02:18]} 23. b3 {[%clk 0:02:08]}  Rbd8 {[%clk 0:02:10]} 24. Qd2 {[%clk 0:02:06]}  Qb8 {[%clk 0:02:00]} 25. h4 {[%clk 0:01:57]}  h5 {[%clk 0:01:48]} 26. Qg5 {[%clk 0:01:57]}  f6 {[%clk 0:01:35]} 27. Qc1 {[%clk 0:01:47]}  Nb6 {[%clk 0:01:34]} 28. Na5 {[%clk 0:01:30]}  Rc8 {[%clk 0:01:28]} 29. Qb1 {[%clk 0:01:29]}  Nd5 {[%clk 0:01:18]} 30. Nc4 {[%clk 0:01:30]}  Kf7 {[%clk 0:01:15]} 31. Ne5+ {[%clk 0:01:27]}  Ke7 {[%clk 0:01:13]} 32. Nxg6+ {[%clk 0:01:27]}  Kd6 {[%clk 0:01:11]} 33. Nf4 {[%clk 0:01:26]}  Nxf4 {[%clk 0:01:03]} 34. Rxf4 {[%clk 0:01:27]}  f5 {[%clk 0:01:03]} 35. d5 {[%clk 0:01:21]}  Kc7 {[%clk 0:01:00]} 36. dxe6 {[%clk 0:01:18]}  Re7 {[%clk 0:00:55]} 37. Qxf5 {[%clk 0:01:14]}  Rg8 {[%clk 0:00:54]} 38. Rc1+ {[%clk 0:01:10]}  Kd8 {[%clk 0:00:53]} 39. Rd4+ {[%clk 0:01:08]}  Ke8 {[%clk 0:00:52]} 40. Qxh5+ {[%clk 0:01:08]}  Kf8 {[%clk 0:00:52]} 41. Qf5+ {[%clk 0:01:03]}  Kg7 {[%clk 0:00:48]} 42. Rg4+ {[%clk 0:01:02]}  Kh8 {[%clk 0:00:48]} 43. Qf6+ {[%clk 0:01:00]}  Reg7 {[%clk 0:00:45]} 44. Rc5 {[%clk 0:00:55]}  Qe8 {[%clk 0:00:41]} 45. e7 {[%clk 0:00:53]}  Kh7 {[%clk 0:00:39]} 46. Qf5+ {[%clk 0:00:53]}  Rg6 {[%clk 0:00:28]} 47. h5 {[%clk 0:00:51]} 1-0

[Event "November 21 Early 2023"]
[Site "https://www.chess.com"]
[Date "2023.11.21"]
[Round "1"]
[White "Drygalov, Sergey"]
[Black "Ferreira, Vitor Hugo Vieira"]
[Result "1-0"]
[Board "29"]
[TimeControl "180+1"]
[WhiteFideId "24171743"]
[BlackFideId "2119765"]
[WhiteElo "2502"]
[BlackElo "2123"]
[WhiteTeam "RUS"]
[BlackTeam "BRA"]
[WhiteClock "0:00:24"]
[BlackClock "0:00:21"]

1. d4 {[%clk 0:03:00]}  d5 {[%clk 0:02:56]} 2. c4 {[%clk 0:03:01]}  c6 {[%clk 0:02:56]} 3. Nf3 {[%clk 0:03:01]}  Nf6 {[%clk 0:02:56]} 4. Nc3 {[%clk 0:03:02]}  e6 {[%clk 0:02:56]} 5. e3 {[%clk 0:03:02]}  Nbd7 {[%clk 0:02:56]} 6. Qc2 {[%clk 0:03:02]}  Bd6 {[%clk 0:02:55]} 7. Bd3 {[%clk 0:03:03]}  dxc4 {[%clk 0:02:55]} 8. Bxc4 {[%clk 0:03:04]}  b5 {[%clk 0:02:55]} 9. Be2 {[%clk 0:03:03]}  Bb7 {[%clk 0:02:53]} 10. e4 {[%clk 0:03:04]}  e5 {[%clk 0:02:53]} 11. dxe5 {[%clk 0:03:04]}  Nxe5 {[%clk 0:02:53]} 12. Nd4 {[%clk 0:03:05]}  O-O {[%clk 0:02:51]} 13. O-O {[%clk 0:03:04]}  g6 {[%clk 0:02:51]} 14. Bh6 {[%clk 0:02:57]}  Re8 {[%clk 0:02:51]} 15. Bg5 {[%clk 0:02:52]}  Be7 {[%clk 0:02:45]} 16. Rad1 {[%clk 0:02:48]}  Qb6 {[%clk 0:02:44]} 17. h3 {[%clk 0:02:43]}  a6 {[%clk 0:02:43]} 18. f4 {[%clk 0:02:40]}  Ned7 {[%clk 0:02:40]} 19. e5 {[%clk 0:02:39]}  Bc5 {[%clk 0:02:40]} 20. Qd2 {[%clk 0:02:35]}  Nd5 {[%clk 0:02:28]} 21. Nxd5 {[%clk 0:02:34]}  cxd5 {[%clk 0:02:29]} 22. Kh1 {[%clk 0:02:34]}  Bxd4 {[%clk 0:02:28]} 23. Qxd4 {[%clk 0:02:34]}  Qxd4 {[%clk 0:02:28]} 24. Rxd4 {[%clk 0:02:35]}  Nc5 {[%clk 0:02:28]} 25. Bh4 {[%clk 0:02:22]}  Rac8 {[%clk 0:02:21]} 26. Bf3 {[%clk 0:02:14]}  Ne6 {[%clk 0:02:19]} 27. Rd2 {[%clk 0:01:55]}  Nxf4 {[%clk 0:02:13]} 28. Bg3 {[%clk 0:01:50]}  Ne6 {[%clk 0:02:08]} 29. Bh4 {[%clk 0:01:42]}  Rc5 {[%clk 0:01:53]} 30. Rfd1 {[%clk 0:01:28]}  Rec8 {[%clk 0:01:46]} 31. Bf6 {[%clk 0:01:18]}  h6 {[%clk 0:01:19]} 32. h4 {[%clk 0:01:09]}  g5 {[%clk 0:01:17]} 33. h5 {[%clk 0:01:09]}  Nf4 {[%clk 0:01:11]} 34. g3 {[%clk 0:01:03]}  Ne6 {[%clk 0:01:07]} 35. Kg1 {[%clk 0:00:58]}  Nf8 {[%clk 0:00:59]} 36. Bxd5 {[%clk 0:00:56]}  Bxd5 {[%clk 0:00:56]} 37. Rxd5 {[%clk 0:00:56]}  Rxd5 {[%clk 0:00:53]} 38. Rxd5 {[%clk 0:00:57]}  Nh7 {[%clk 0:00:53]} 39. Be7 {[%clk 0:00:58]}  f5 {[%clk 0:00:50]} 40. Rd7 {[%clk 0:00:31]}  Nf8 {[%clk 0:00:39]} 41. Rd6 {[%clk 0:00:29]}  Kf7 {[%clk 0:00:30]} 42. Bxf8 {[%clk 0:00:29]}  Kxf8 {[%clk 0:00:29]} 43. Rxh6 {[%clk 0:00:30]}  Rc1+ {[%clk 0:00:29]} 44. Kf2 {[%clk 0:00:30]}  Rc2+ {[%clk 0:00:30]} 45. Kf3 {[%clk 0:00:30]}  Rxb2 {[%clk 0:00:31]} 46. Rf6+ {[%clk 0:00:30]}  Kg7 {[%clk 0:00:31]} 47. Rxf5 {[%clk 0:00:30]}  Kh6 {[%clk 0:00:32]} 48. e6 {[%clk 0:00:30]}  Rb1 {[%clk 0:00:23]} 49. Re5 {[%clk 0:00:28]}  Rf1+ {[%clk 0:00:21]} 50. Kg4 {[%clk 0:00:28]}  Rf8 {[%clk 0:00:22]} 51. e7 {[%clk 0:00:28]}  Re8 {[%clk 0:00:23]} 52. Re6+ {[%clk 0:00:28]}  Kg7 {[%clk 0:00:23]} 53. Kxg5 {[%clk 0:00:29]}  Kf7 {[%clk 0:00:23]} 54. Kf5 {[%clk 0:00:28]}  Rxe7 {[%clk 0:00:21]} 55. Rxe7+ {[%clk 0:00:28]}  Kxe7 {[%clk 0:00:22]} 56. Ke5 {[%clk 0:00:28]}  Kf7 {[%clk 0:00:22]} 57. g4 {[%clk 0:00:28]}  b4 {[%clk 0:00:22]} 58. Kd4 {[%clk 0:00:26]}  a5 {[%clk 0:00:23]} 59. Kc4 {[%clk 0:00:24]}  Kf6 {[%clk 0:00:23]} 60. Kb3 {[%clk 0:00:24]}  Kg5 {[%clk 0:00:22]} 61. Ka4 {[%clk 0:00:24]}  Kxg4 {[%clk 0:00:23]} 62. h6 {[%clk 0:00:24]}  b3 {[%clk 0:00:21]} 63. axb3 {[%clk 0:00:24]} 1-0